Cogmind - Beta 14 @@@ ROGUE MODE // 2024.12.23 @ 08:07:09 Player: abnormality Result: Destroyed by G-47 Trooper with Particle Gun Performance ------------- Evolutions (2) 1000 Regions Visited (6) 1200 Robots Destroyed (52) 260 Value Destroyed (1465) 1465 Prototype IDs (2) 40 Alien Tech Used (0) 0 Bonus (0) 0 TOTAL SCORE: 3965 Bonus ------- None Cogmind --------- Core Integrity 0/550 Matter 248/300 Energy 37/290 System Corruption 5% Temperature Warning (340) Movement Walking (330) Ox3 Location -8/Materials Parts ------- > --- POWER (2) -------- Improved Deuterium Engine > --- PROPULSION (4) --- Aluminum Leg > --- UTILITY (3) ------ Medium Storage Unit Improved Sensor Array > --- WEAPON (2) ------- Improved EM Pulse Cannon Improved EM Pulse Cannon > --- INVENTORY (10) --- Light Deuterium Engine Carbon-fiber Leg Huge Storage Unit Improved Sensor Array Light Armor Plating Hardened Light Armor Plating Peak State ------------ > --- POWER ------------ Light Nuclear Core Improved Deuterium Engine > --- PROPULSION ------- Aluminum Leg Aluminum Leg Aluminum Leg Carbon-fiber Leg > --- UTILITY ---------- Medium Storage Unit Improved Sensor Array Seismic Detector > --- WEAPON ----------- Improved EM Pulse Cannon Improved EM Pulse Cannon > --- INVENTORY -------- Improved Ion Engine Aluminum Leg Aluminum Leg Carbon-fiber Leg Huge Storage Unit Improved Sensor Array Light Armor Plating Hardened Light Armor Plating Improved EM Pulse Cannon Improved Grenade Launcher [Rating: 28] Favorites ----------- Power Light Ion Engine Engine Light Ion Engine Power Core Light Nuclear Core Propulsion Aluminum Leg Leg Aluminum Leg Flight Unit Improved VTOL Module Utility Seismic Detector Device Seismic Detector Storage Medium Storage Unit Weapon Particle Cannon Energy Gun Precision Shock Rifle Energy Cannon Particle Cannon Ballistic Gun Makeshift Shrapnel Gun Launcher Mini Grenade Launcher Special Weapon Mining Laser Slashing Weapon Mining Claw Build | -11 -10 -9 -9 -9 -8 -8 ------- Run | Yrd Mat Mat Min Exi Min Mat Slots Evolved 4 | . . 2 . . . 2 Power 1 | . . . . . . 1 Propulsion 2 | . . 2 . . . . Utility 1 | . . . . . . 1 Weapon . | . . . . . . . Parts Attached 61 | 7 4 11 9 3 . 27 Power 8 | 1 1 . 2 . . 4 Engine 7 | 1 1 . 2 . . 3 Core 1 | . . . . . . 1 Reactor . | . . . . . . . Propulsion 18 | 2 . 3 3 . . 10 Treads . | . . . . . . . Leg 16 | 2 . 3 3 . . 8 Wheel . | . . . . . . . Hover . | . . . . . . . Flight 2 | . . . . . . 2 Utility 13 | 1 3 4 1 . . 4 Device 3 | . 1 . . . . 2 Storage 10 | 1 2 4 1 . . 2 Processor . | . . . . . . . Hackware . | . . . . . . . Protection . | . . . . . . . Artifact . | . . . . . . . Weapon 22 | 3 . 4 3 3 . 9 Energy Gun 5 | 1 . 2 1 . . 1 Energy Cannon 8 | . . 1 1 . . 6 Ballistic Gun 3 | 2 . . . 1 . . Ballistic Cannon . | . . . . . . . Launcher 4 | . . . 1 1 . 2 Special Weapon 1 | . . . . 1 . . Impact Weapon . | . . . . . . . Slashing Weapon 1 | . . 1 . . . . Piercing Weapon . | . . . . . . . Special Melee Weapon . | . . . . . . . Unidentified Prototypes 2 | . . . . . . 2 Corrupted Parts 2 | . . . . . . 2 System Corruption 5 | . . . . . . 5 Parts Lost 25 | . 1 . 11 . . 13 Power 6 | . 1 . 3 . . 2 Propulsion 12 | . . . 6 . . 6 Utility 2 | . . . . . . 2 Weapon 5 | . . . 2 . . 3 Highest Loss Streak 9 | . 1 . 5 . . 9 To Critical Strikes . | . . . . . . . Average Slot Usage (%) 72 | . 93 89 84 55 55 74 Engine 6 | . 7 11 8 . . 10 Core 1 | . . . . . . 4 Leg 21 | . 28 34 34 11 11 21 Device 11 | . 14 11 11 11 11 11 Storage 10 | . 14 11 11 11 11 9 Energy Gun 2 | . . 10 4 . . 4 Energy Cannon 7 | . . 6 11 8 . 6 Ballistic Gun 8 | . 28 5 . 9 11 4 Launcher 2 | . . . 2 3 11 1 Peak Build Rating 28 | 6 7 11 11 9 9 28 Average Rating 11 | 4 6 9 9 8 9 20 On Entrance 7 | . 6 7 11 7 9 9 Naked Turns . | . . . . . . . Heaviest Build 104 | 10 11 46 19 19 14 104 Greatest Support 45 | 20 20 40 40 10 10 45 Greatest Overweight (x) 9 | . . 1 1 1 1 9 Average Overweight (x) . | . . . . 1 1 1 Largest Inventory Capacity 25 | 8 20 25 10 10 10 25 Average Capacity 11 | 7 8 8 8 10 10 16 Most Carried 10 | 5 7 8 8 6 6 10 Average Carried 6 | 2 4 7 5 5 6 8 Final Capacity 10 | 8 8 8 10 10 10 10 Final Carried 8 | 4 6 8 5 6 6 6 Class Distribution -------------------- 70% | Mutant 29% | Scavenger-Mutant Dominant Class ---------------- Mutant | -10/Materials Mutant | -9/Materials Scavenger-Mutant | -9/Mines Mutant | -9/Exiles Mutant | -8/Mines Scavenger-Mutant | -8/Materials Resources | -11 -10 -9 -9 -9 -8 -8 ----------- Run | Yrd Mat Mat Min Exi Min Mat Matter Collected 1121 | 280 89 115 98 41 . 498 Remotely . | . . . . . . . Salvage Created 1797 | 109 135 409 224 59 . 861 Parts 101 | 4 16 23 6 1 . 51 Haulers Intercepted 1 | . . . . . . 1 Recyclers Shooed 2 | 1 . . . . . 1 Parts Field Recycled . | . . . . . . . Retrieved Matter . | . . . . . . . Parts Self-Destructed . | . . . . . . . Prevented . | . . . . . . . Kills | -11 -10 -9 -9 -9 -8 -8 ------- Run | Yrd Mat Mat Min Exi Min Mat Combat Hostiles Destroyed 39 | . 6 9 8 1 . 15 Guns 21 | . 6 5 2 1 . 7 Cannons 12 | . . 4 3 . . 5 AOE 6 | . . . 3 . . 3 Classes Destroyed 11 | 2 3 1 2 . . 3 Worker 2 | . . . 1 . . 1 Builder 1 | . . . . . . 1 Tunneler 3 | 1 . . . . . 2 Hauler 1 | . . . . . . 1 Recycler 2 | 1 . 1 . . . . Watcher 4 | . 1 1 . . . 2 Swarmer 12 | . 5 4 3 . . . Grunt 15 | . 1 3 2 1 . 8 Duelist 2 | . . . 1 . . 1 Sentry 9 | . . 2 2 . . 5 Hunter 1 | . . . . . . 1 Best Kill Streak 6 | 2 3 5 2 1 . 6 Combat Bots Only 5 | . 3 5 2 1 . 4 Max Kills in Single Turn 2 | 1 1 1 1 1 . 2 Gunslinging . | . . . . . . . Exploded 2 | . . . 1 . . 2 Melee . | . . . . . . . Uniques/NPCs Destroyed . | . . . . . . . Combat | -11 -10 -9 -9 -9 -8 -8 -------- Run | Yrd Mat Mat Min Exi Min Mat Hostile Shots Fired 256 | . 28 34 72 . 6 116 Missed 73 | . 8 9 17 . 3 36 Damage Taken 3057 | . 156 275 798 125 18 1685 Core 874 | . 9 43 196 65 . 561 Absorbed by Shields . | . . . . . . . Core Remaining (%) 73 | 100 96 . . . 24 . Volleys Fired 156 | 5 28 25 26 16 . 56 Largest 2 | 2 2 2 2 2 . 2 Hottest 138 | 40 40 124 124 124 . 138 Shots Fired 284 | 10 56 50 50 19 . 99 Gun 175 | 10 56 38 17 3 . 51 Cannon 84 | . . 12 26 1 . 45 Launcher 18 | . . . 7 8 . 3 Special 7 | . . . . 7 . . Kinetic 99 | 10 56 13 . 3 . 17 Thermal 95 | . . 37 39 8 . 11 Explosive 18 | . . . 7 8 . 3 Electromagnetic 72 | . . . 4 . . 68 Robot Hit Streak 11 | 3 3 7 11 3 . 10 Robot Miss Streak 6 | 2 5 4 6 2 . 4 Penetration Max . | . . . . . . . Secondary Targets 1 | . . . . . . 1 Max Gunslinging Chain 1 | . . . . . . 1 Shots Hit Robots 151 | 6 21 28 27 2 . 67 Core Hits 90 | 3 10 13 15 7 . 42 Critical Kills . | . . . . . . . Critical Parts Destroyed . | . . . . . . . Critical Strikes 3 | . . 2 1 . . . Burn 3 | . . 2 1 . . . Melee Attacks . | . . . . . . . Impact . | . . . . . . . Slashing . | . . . . . . . Piercing . | . . . . . . . Sneak Attacks . | . . . . . . . Combat Hostiles . | . . . . . . . Follow-up Attacks . | . . . . . . . Damage Inflicted 3876 | 52 181 408 757 199 . 2279 Guns 1454 | 52 181 286 106 35 . 794 Cannons 1032 | . . 122 265 . . 645 Explosions 1381 | . . . 386 164 . 831 Melee . | . . . . . . . Ramming 9 | . . . . . . 9 Kinetic 532 | 52 181 66 . 35 . 198 Thermal 1098 | . . 342 325 . . 431 Explosive 1053 | . . . 386 164 . 503 Electromagnetic 1184 | . . . 46 . . 1138 Impact . | . . . . . . . Slashing . | . . . . . . . Piercing . | . . . . . . . Highest Corruption 5 | . . . . . . 5 Average Corruption 4 | . . . . . . 4 Corruption Purged . | . . . . . . . Corruption Blocked . | . . . . . . . Effects 17 | . . . . . . 17 Message Errors 4 | . . . . . . 4 Matter Fused 4 | . . . . . . 4 Heat Flow Errors 2 | . . . . . . 2 Energy Discharges 2 | . . . . . . 2 Data Loss (minor) 2 | . . . . . . 2 Data Loss (major) 2 | . . . . . . 2 Misfires 1 | . . . . . . 1 Overload Shots . | . . . . . . . Overflow Damage 246 | . . . 42 22 . 182 Projectiles 21 | . . . . . . 21 Explosions 225 | . . . 42 22 . 161 Melee . | . . . . . . . Knockbacks . | . . . . . . . Impact . | . . . . . . . Kinetic . | . . . . . . . Secondary . | . . . . . . . Self-Inflicted Damage 482 | . . . 148 126 . 208 Shots 14 | . . . 6 5 . 3 Rammed . | . . . . . . . Targets Rammed 2 | . . . . . . 2 Kicked 2 | . . . . . . 2 Crushed . | . . . . . . . Highest Temperature 612 | . 1 191 462 6 . 612 Average Temperature 148 | . 1 74 140 4 . 177 Received Heat Transfer 720 | . 6 78 78 . . 558 Effects 23 | . . . 4 . . 19 Shutdowns 5 | . . . 1 . . 4 Energy Bleed 3 | . . . . . . 3 Interference 4 | . . . . . . 4 Matter Decay 1 | . . . . . . 1 Short Circuit 1 | . . . . . . 1 Damage (minor) 2 | . . . 1 . . 1 Damage (major) 5 | . . . 2 . . 3 Damage (core) 2 | . . . . . . 2 Siege Activations . | . . . . . . . Robots Corrupted . | . . . . . . . Combat Hostiles . | . . . . . . . Parts Fried 5 | . . . . . . 5 Impact Corruptions . | . . . . . . . Robots Melted . | . . . . . . . Combat Hostiles . | . . . . . . . Parts Melted 2 | . . 1 1 . . . Heat Transferred 2163 | . . 925 703 . . 535 Parts Sabotaged . | . . . . . . . Parts Stolen . | . . . . . . . Parts Stripped . | . . . . . . . Power Chain Reactions . | . . . . . . . Alert | -11 -10 -9 -9 -9 -8 -8 ------- Run | Yrd Mat Mat Min Exi Min Mat Peak Influence 315 | 10 238 315 257 . . 281 Initial 122 | . 6 37 122 . . . Average 102 | 5 117 189 161 . . 52 Maximum Alert Level 1 | . 1 1 1 . . 1 Low Security (%) 77 | 100 68 54 56 . 100 95 Level 1 22 | . 31 45 43 . . 4 Level 2 . | . . . . . . . Level 3 . | . . . . . . . Level 4 . | . . . . . . . Level 5 . | . . . . . . . High Security . | . . . . . . . Max Security . | . . . . . . . Squads Dispatched 5 | . 1 1 . . . 3 Investigation 3 | . 1 1 . . . 1 Extermination . | . . . . . . . Reinforcement 2 | . . . . . . 2 Assault . | . . . . . . . Garrison . | . . . . . . . Intercept . | . . . . . . . Searches Triggered . | . . . . . . . Construction Impeded 1 | . . . . . . 1 Haulers Reinforced . | . . . . . . . Active Scanning Responses . | . . . . . . . Cargo Convoy Interrupts . | . . . . . . . Stealth | -11 -10 -9 -9 -9 -8 -8 --------- Run | Yrd Mat Mat Min Exi Min Mat Distress Signals 1 | . . . . . . 1 Communications Jammed . | . . . . . . . Distress Signals . | . . . . . . . Times Spotted 70 | . 17 14 11 . 4 24 Peak Tracking Total 8 | . 6 4 3 . 4 8 Tactical Retreats 5 | . 2 . 2 . . 1 Traps | -11 -10 -9 -9 -9 -8 -8 ------- Run | Yrd Mat Mat Min Exi Min Mat Traps Triggered 1 | . . 1 . . . . Indirectly . | . . . . . . . Trap Hack Attempts . | . . . . . . . Triggered . | . . . . . . . Disarmed . | . . . . . . . Reprogrammed 6 | . 6 . . . . . Reused 1 | . 1 . . . . . Traps Extracted . | . . . . . . . Installed . | . . . . . . . Triggered 1 | . 1 . . . . . Machines | -11 -10 -9 -9 -9 -8 -8 ---------- Run | Yrd Mat Mat Min Exi Min Mat Machines Disabled 7 | . . 1 2 . . 4 Max in Single Turn 4 | . . 1 2 . . 4 Machines Repaired . | . . . . . . . Machines Dismantled . | . . . . . . . Machines Sabotaged . | . . . . . . . Overloaded Fab Kills . | . . . . . . . Hacking | -11 -10 -9 -9 -9 -8 -8 --------- Run | Yrd Mat Mat Min Exi Min Mat Machines Accessed 10 | . 4 . . 4 . 2 Terminals 6 | . 4 . . . . 2 Fabricators . | . . . . . . . Repair Stations . | . . . . . . . Recycling Units . | . . . . . . . Scanalyzers . | . . . . . . . Garrison Access . | . . . . . . . Total Hacks 40 | . 9 . . 26 . 5 Successful 34 | . 5 . . 26 . 3 Failed 6 | . 4 . . . . 2 Catastrophic 2 | . . . . . . 2 Database Lockouts . | . . . . . . . Manual . | . . . . . . . Terminals 14 | . 9 . . . . 5 Fabricators . | . . . . . . . Repair Stations . | . . . . . . . Recycling Units . | . . . . . . . Scanalyzers . | . . . . . . . Garrison Access . | . . . . . . . Terminal Hacks 34 | . 5 . . 26 . 3 Record 29 | . 1 . . 26 . 2 Branch Access Points 1 | . 1 . . . . . Emergency Access Points 1 | . . . . . . 1 Alert Level 1 | . 1 . . . . . Locate Traps 1 | . 1 . . . . . Reprogram Traps 1 | . 1 . . . . . Fabricator Hacks . | . . . . . . . Repair Station Hacks . | . . . . . . . Recycling Unit Hacks . | . . . . . . . Scanalyzer . | . . . . . . . Garrison Access Hacks . | . . . . . . . Unauthorized Hacks . | . . . . . . . Terminals . | . . . . . . . Fabricators . | . . . . . . . Repair Stations . | . . . . . . . Recycling Units . | . . . . . . . Scanalyzers . | . . . . . . . Garrison Access . | . . . . . . . Data Cores Recovered . | . . . . . . . Used . | . . . . . . . Hacking Detections 2 | . 1 . . . . 1 Full Trace Events 2 | . 1 . . . . 1 Feedback Events . | . . . . . . . Feedback Blocked . | . . . . . . . Robot Schematics Acquired . | . . . . . . . Robots Built . | . . . . . . . Authchips . | . . . . . . . Time . | . . . . . . . Total Robot Build Rating . | . . . . . . . Part Schematics Acquired . | . . . . . . . Parts Built . | . . . . . . . Authchips . | . . . . . . . Time . | . . . . . . . Total Part Build Rating . | . . . . . . . Parts Repaired . | . . . . . . . Time . | . . . . . . . Parts Recycled . | . . . . . . . Recycled Matter . | . . . . . . . Retrieved Matter . | . . . . . . . Retrieved Components . | . . . . . . . Parts Scanalyzed . | . . . . . . . Part Schematics Acquired . | . . . . . . . Parts Damaged . | . . . . . . . Bothacking | -11 -10 -9 -9 -9 -8 -8 ------------ Run | Yrd Mat Mat Min Exi Min Mat Used RIF Installer . | . . . . . . . Robots Hacked . | . . . . . . . Non-combat . | . . . . . . . Combat . | . . . . . . . Robot Hacks Applied . | . . . . . . . Relay Couplers Released . | . . . . . . . Fabnet Peak Effective % . | . . . . . . . Robots Rewired . | . . . . . . . Allies Hacked . | . . . . . . . Hacks Repelled . | . . . . . . . Allies | -11 -10 -9 -9 -9 -8 -8 -------- Run | Yrd Mat Mat Min Exi Min Mat Total Allies . | . . . . . . . Largest Group . | . . . . . . . Highest-Rated Group . | . . . . . . . Highest-Rated Ally . | . . . . . . . Total Orders . | . . . . . . . Ally Attacks . | . . . . . . . Total Damage . | . . . . . . . Kills . | . . . . . . . Allies Corrupted . | . . . . . . . Allies Melted . | . . . . . . . Intel | -11 -10 -9 -9 -9 -8 -8 ------- Run | Yrd Mat Mat Min Exi Min Mat Robot Analysis Total . | . . . . . . . Derelict Logs Recovered 1 | . . . 1 . . . Drone Launches . | . . . . . . . Drone Recoveries . | . . . . . . . Exploration | -11 -10 -9 -9 -9 -8 -8 ------------- Run | Yrd Mat Mat Min Exi Min Mat Turns Passed 5018 | 90 541 398 781 1704 75 1429 Spaces Moved 2630 | 64 382 195 518 853 40 578 Core 38 | 23 . . . . . 15 Treads . | . . . . . . . Legs 2592 | 41 382 195 518 853 40 563 Wheels . | . . . . . . . Hover . | . . . . . . . Flight . | . . . . . . . Fastest Speed 50 | 50 120 120 120 190 190 120 Average Speed 163 | 94 120 122 131 190 190 201 Slowest Speed 750 | 120 120 190 190 190 190 750 Overloaded Moves . | . . . . . . . Propulsion Burnouts . | . . . . . . . Robots Hopped . | . . . . . . . Cave-ins Triggered . | . . . . . . . Exploration Rate (%) 43 | 3 48 26 78 90 14 43 Regions Visited 6 Branch Regions 3 Pre-discovered Areas . | . . . . . . . Known Exits Taken 1 | . . . 1 . . . Unknown Exits Taken 5 | 1 1 1 . 1 1 . Scrap Searched 1 | . . . 1 . . . Spaces Dug 11 | . . . . 11 . . Terrain Destroyed 158 | . . . 70 35 . 53 Melee . | . . . . . . . Projectile 1 | . . . 1 . . . AOE 157 | . . . 69 35 . 53 Terrain Rammed . | . . . . . . . Walls Destroyed . | . . . . . . . Machines Disabled . | . . . . . . . Actions | -11 -10 -9 -9 -9 -8 -8 --------- Run | Yrd Mat Mat Min Exi Min Mat Total 3070 | 85 419 310 567 902 39 748 Wait 135 | . 2 56 8 27 . 42 Move 2624 | 63 381 194 517 852 39 578 Hop . | . . . . . . . Pick Up 61 | 10 4 14 5 1 . 27 Fast Attach . | . . . . . . . Attach 40 | 6 2 2 8 . . 22 Detach 6 | . . . 1 . . 5 Swap 21 | 1 2 9 1 3 . 5 Drop 22 | . . 10 1 . . 11 Fire 156 | 5 28 25 26 16 . 56 Melee . | . . . . . . . Ram . | . . . . . . . Kick 2 | . . . . . . 2 Crush . | . . . . . . . Escape Stasis . | . . . . . . . Rewire 3 | . . . . 3 . . Trap . | . . . . . . . Miscellaneous . | . . . . . . . Route ------- -11/Scrapyard -10/Materials (discovered 2 exits: *Mat / Min) -9/Materials -9/Mines -9/Exiles (discovered 2 exits: [*Min x2]) -8/Mines -8/Materials History --------- Turn | Location | Event 46 | -11/Scrapyard | Discovered new exit (range 15) 91 | -11/Scrapyard | Entered Materials 310 | -10/Materials | Build established: Mutant 333 | -10/Materials | Discovered new exit (range 11) 582 | -10/Materials | Identified exit to Mines 632 | -10/Materials | Entered another Materials area 632 | -9/Materials | Evolved 2 slots: Propulsion x2 982 | -9/Materials | Discovered new exit (range 12) 1030 | -9/Materials | Entered Mines 1283 | -9/Mines | Build established: Scavenger-Mutant 1610 | -9/Mines | Lost 5 parts (1p3n1w) 1626 | -9/Mines | Identified exit to Exiles 1635 | -9/Mines | Core integrity fell below 50% 1667 | -9/Mines | Lost 3 parts (1p2n) 1803 | -9/Mines | Deemed a non-threat by the Exiles lab entrance 1811 | -9/Mines | Entered Exiles 1811 | -9/Exiles | Found Exiles lab destroyed 1935 | -9/Exiles | Build established: Mutant 2140 | -9/Exiles | Discovered new exit (range 14) 3292 | -9/Exiles | Discovered new exit (range 14) 3515 | -9/Exiles | Entered Mines 3572 | -8/Mines | Discovered new exit (range 10) 3590 | -8/Mines | Entered Materials 3590 | -8/Materials | Evolved 2 slots: Power x1, Utility x1 4619 | -8/Materials | Build established: Scavenger-Mutant 4740 | -8/Materials | Core integrity fell below 50% 4984 | -8/Materials | Core integrity fell below 20% 5019 | -8/Materials | Destroyed by G-47 Trooper with Particle Gun Last Messages --------------- 05004_ U-05 Engineer builds a Wall. 05004_ Imp. EM Pulse Cannon destroyed. 05004_ U-05 Engineer lays Concrete. 05004_ K-01 Serf collects debris. 05005_ U-05 Engineer lays Concrete. 05010_ Acquired Imp. EM Pulse Cannon. 05010_ U-05 Engineer lays Concrete. 05010_ U-05 Engineer builds a Wall. 05010_ U-05 Engineer lays Concrete. 05012_ K-01 Serf collects debris. 05012_ Y-45 Defender destroyed. 05012_ U-05 Engineer lays Concrete. 05016_ K-01 Serf collects debris. 05016_ U-05 Engineer builds a Wall. 05017_ K-01 Serf collects debris. 05017_ U-05 Engineer lays Concrete. 05018_ Destroyed Welding Torch. 05018_ ALERT: Construction progress impeded, dispatching reinforcements to local area. 05019_ Power failure, Imp. Deuterium Engine shutdown. Map ----- +----------------------------------------------------+ | ???????????# #???? #?????????????????????????? | | ???????????# #???? #?????????????????????????? | | ???????????# #???? #?????????????????????????? | | ???????????# #???? #?????????????????????????? | | ??????????## ##???^ ^#?????????????????????????? | | ??????????# #### ####### ????????????????? | | ??????????# [! ???????????????? | | ??????????# =%[ ???????????????? | | ??????????# = ???????????????? | | ??????????# ###+#######""" ???????????????? | | ??????????## ## ##;##### #??????????????? | | ########### # """ # # ##?????????????? | | # "R # # "#?????????????? | | T # """ # # "#?????????????? | | # +[= # ?####???????????? | | ####### ### #= #%! + ????????????? | | #??# ###############*= # ##?????????????? | | #??# #????????????#;! u# "#?????????????? | | #??# #????????????#; = # "#?????????????? | | #??#######???????????##; # ?"#?????????????? | | #????????????????????# ; # ? #?????????????? | | #????????????????????# ; # u ######/#??????? | | #????????????????????# "*= # ????? | | #????????????????????# " uk g%u% ????? | | #?????????????????#####;#;; u## ????? | | ??????????????????# """ @ k#*% #####+???????? | | ??????????????????# """ "" # [ ###????????????? | | ??????????????????# """ """ ! #| ##?????????????? | | ??????????????????# + #??????????????? | | ??????????????????# # #??????????????? | | ??????????????????# # #??????????????? | | ??????????????????# #? #??????????????? | | ??????????????????#############? #??????????????? | | ????????????????????????????????? #??????????????? | | ??????????????????????????????????#??????????????? | | ?????????????????????????????????????????????????? | | ?????????????????????????????????????????????????? | | ?????????????????????????????????????????????????? | | ?????????????????????????????????????????????????? | | ?????????????????????????????????????????????????? | | ?????????????????????????????????????????????????? | | ?????????????????????????????????????????????????? | | ?????????????????????????????????????????????????? | | ?????????????????????????????????????????????????? | | ?????????????????????????????????????????????????? | | ?????????????????????????????????????????????????? | | ?????????????????????????????????????????????????? | | ?????????????????????????????????????????????????? | | ?????????????????????????????????????????????????? | | ?????????????????????????????????????????????????? | +----------------------------------------------------+ Best States ------------- Heat Dissipation 31 Energy Generation 25 Energy Capacity 455 Matter Stores 300 Matter Capacity 300 Sight Range 16 Robot Scan Range 15 Terrain Scan Density 10 Evasion (%) 55 Item Schematics ----------------- None Robot Schematics ------------------ None Fabricated ------------ Nothing Alien Tech Used ----------------- None Achievements -------------- None Challenges ------------ None Game ------ Seed MediumThrowingCycler Manual? 0 Play Time 00:32:48 Cumulative 14.0 hours Start 2024.12.23 @ 06:59:57 End 2024.12.23 @ 08:07:09 Sessions 1 Manual Loads 0 Difficulty Rogue Special Mode None Game No. 68 Rogue 68 Adventurer 0 Explorer 0 Win Type - Total 0 Types 0/0/0/0/0/0/0/0/0 Lore% 16 Gallery% 17 Achievement% 21 Wizard Run 0 Options --------- Layout 0 ASCII 0 Keyboard 0 Movement Mouse Keybinds 0 Fullscreen 1 Font 18/SmallcapsGlow Map View 38x25 Zoom Use 98% Tactical HUD 1 Map Filters NONE Filters NONE Steam 1 RUN: ab79bc85-85fb-4e87-bec1-ce79eb0a30bc